Cogmind - Beta 17 @@@ ROGUE MODE // 2026.08.12 @ 20:52:59 Player: Rocketboy Result: Destroyed by S-10 Pest with Light Assault Rifle Performance ------------- Evolutions (0) 0 Regions Visited (2) 400 Robots Destroyed (20) 100 Value Destroyed (426) 426 Prototype IDs (2) 40 Alien Tech Used (0) 0 Bonus (0) 0 TOTAL SCORE: 966 Bonus ------- None Cogmind --------- Core Integrity 0/250 Matter 290/300 Energy 83/125 System Corruption 0% Temperature Cool (30) Movement Flying (37) Location -10/Mines Parts ------- > --- POWER (1) -------- Light Ion Engine > --- PROPULSION (2) --- Flight Unit Flight Unit > --- UTILITY (2) ------ Seismic Detector > --- WEAPON (2) ------- Light Assault Rifle Mining Laser > --- INVENTORY (5) ---- Light Ion Engine Flight Unit Flight Unit Flight Unit Flight Unit Peak State ------------ > --- POWER ------------ Light Ion Engine > --- PROPULSION ------- Aluminum Leg Aluminum Leg > --- UTILITY ---------- Small Storage Unit Improved Terrain Scanner > --- WEAPON ----------- Medium Laser Small Laser > --- INVENTORY -------- Ion Engine Light Ion Engine Seismic Detector [Rating: 9] Favorites ----------- Power Light Ion Engine Engine Light Ion Engine Propulsion Aluminum Leg Leg Aluminum Leg Flight Unit Flight Unit Utility Small Storage Unit Device Improved Terrain Scanner Storage Small Storage Unit Weapon Small Laser Energy Gun Small Laser Ballistic Gun Light Assault Rifle Special Weapon Mining Laser Slashing Weapon Mining Claw Build | -11 -10 -10 ------- Run | Yrd Mat Min Slots Evolved . | . . . Power . | . . . Propulsion . | . . . Utility . | . . . Weapon . | . . . Parts Attached 21 | 9 12 . Power 4 | 2 2 . Engine 4 | 2 2 . Core . | . . . Reactor . | . . . Propulsion 7 | 2 5 . Treads . | . . . Leg 5 | 2 3 . Wheel . | . . . Hover . | . . . Flight 2 | . 2 . Utility 3 | 3 . . Device 2 | 2 . . Storage 1 | 1 . . Processor . | . . . Hackware . | . . . Protection . | . . . Artifact . | . . . Weapon 7 | 2 5 . Energy Gun 3 | 2 1 . Energy Cannon . | . . . Ballistic Gun 2 | . 2 . Ballistic Cannon . | . . . Launcher . | . . . Special Weapon 1 | . 1 . Impact Weapon . | . . . Slashing Weapon 1 | . 1 . Piercing Weapon . | . . . Special Melee Weapon . | . . . Unidentified Prototypes . | . . . Parts Lost 9 | . 9 . Power 2 | . 2 . Propulsion 2 | . 2 . Utility 1 | . 1 . Weapon 4 | . 4 . Highest Loss Streak 7 | . 7 . To Critical Strikes . | . . . Average Backups 4 | 1 4 5 Power 1 | 1 1 1 Propulsion 1 | . 1 4 Utility . | . . . Weapon . | . . . Tool/Special . | . . . Unused Backups 6 | . 1 5 Power 1 | . . 1 Propulsion 4 | . . 4 Utility . | . . . Weapon 1 | . 1 . Tool/Special . | . . . Average Slot Usage (%) 89 | . 90 85 Engine 12 | . 11 14 Leg 18 | . 22 . Flight 7 | . 3 28 Device 12 | . 12 14 Storage 10 | . 12 . Energy Gun 17 | . 20 . Ballistic Gun 3 | . 1 14 Special Weapon 2 | . . 14 Slashing Weapon 2 | . 3 . Peak Build Rating 9 | 9 9 6 Average Rating 7 | 5 7 6 On Entrance 5 | . 9 6 Avg Prop Armor Cover (%) . | . . . Naked Turns . | . . . Heaviest Build 14 | 14 12 6 Greatest Support 20 | 20 20 8 Greatest Overweight (x) 2 | . 2 . Average Overweight (x) . | . . . Largest Inventory Capacity 8 | 8 8 5 Average Capacity 7 | 7 7 5 Most Carried 7 | 5 7 5 Average Carried 4 | 1 4 5 Final Capacity 8 | 8 5 5 Final Carried 5 | 4 5 5 Class Distribution -------------------- 53% | Mutant 46% | Scavenger-Mutant Dominant Class ---------------- Scavenger-Mutant | -10/Materials Scavenger-Mutant | -10/Mines Resources | -11 -10 -10 ----------- Run | Yrd Mat Min Matter Collected 408 | 290 118 . Remotely . | . . . Salvage Created 591 | 98 493 . Parts 37 | 10 27 . Haulers Intercepted 1 | . 1 . Recyclers Shooed . | . . . Parts Field Recycled . | . . . Retrieved Matter . | . . . Parts Self-Destructed . | . . . Prevented . | . . . Parts Restored . | . . . Kills | -11 -10 -10 ------- Run | Yrd Mat Min Combat Hostiles Destroyed 15 | . 14 1 Melee 4 | . 4 . Guns 11 | . 10 1 Classes Destroyed 6 | 2 4 . Worker 1 | . 1 . Tunneler 2 | 2 . . Hauler 1 | . 1 . Recycler 1 | 1 . . Swarmer 5 | . 4 1 Grunt 10 | . 10 . Best Kill Streak 4 | 1 4 1 Combat Bots Only 4 | . 4 1 Max Kills in Single Turn 1 | 1 1 1 Gunslinging . | . . . Exploded . | . . . Melee 1 | . 1 . Uniques/NPCs Destroyed . | . . . Combat | -11 -10 -10 -------- Run | Yrd Mat Min Hostile Shots Fired 145 | . 140 5 Missed 29 | . 29 . Hits 116 | . 111 5 Projectile 116 | . 111 5 AOE 2 | . . 2 Critical Strikes 2 | . 2 . Damage Taken 1125 | . 1075 50 Core 254 | . 242 12 Absorbed by Shields . | . . . Core Remaining (%) 100 | 100 . . Volleys Fired 62 | 7 53 2 Largest 2 | 2 2 2 Hottest 120 | 90 120 120 Shots Fired 109 | 14 91 4 Gun 105 | 14 89 2 Cannon . | . . . Launcher . | . . . Special 4 | . 2 2 Kinetic 15 | . 13 2 Thermal 94 | 14 78 2 Explosive . | . . . Electromagnetic . | . . . Robot Hit Streak 11 | 6 11 4 Robot Miss Streak 4 | 2 4 . Penetration Max . | . . . Secondary Targets 1 | . 1 . Max Gunslinging Chain 1 | . 1 . Shots Hit Robots 76 | 10 63 3 Core Hits 32 | 4 27 1 Critical Kills . | . . . Critical Parts Destroyed . | . . . Critical Strikes 2 | . 2 . Burn 2 | . 2 . Melee Attacks 8 | . 8 . Impact . | . . . Slashing 8 | . 8 . Piercing . | . . . Sneak Attacks . | . . . Combat Hostiles . | . . . Follow-up Attacks . | . . . Damage Inflicted 967 | 119 809 39 Guns 780 | 119 646 15 Cannons . | . . . Explosions . | . . . Melee 115 | . 115 . Ramming . | . . . Kinetic 61 | . 46 15 Thermal 791 | 119 648 24 Explosive . | . . . Electromagnetic . | . . . Impact . | . . . Slashing 115 | . 115 . Piercing . | . . . Highest Corruption . | . . . Average Corruption . | . . . Corruption Purged . | . . . Corruption Blocked . | . . . Overload Shots . | . . . Overflow Damage 4 | . . 4 Projectiles 4 | . . 4 Explosions . | . . . Melee . | . . . Knockbacks . | . . . Impact . | . . . Kinetic . | . . . Secondary . | . . . Self-Inflicted Damage . | . . . Shots . | . . . Rammed . | . . . Targets Rammed . | . . . Kicked . | . . . Crushed . | . . . Highest Temperature 216 | 90 216 48 Average Temperature 79 | 35 87 30 Received Heat Transfer 339 | . 339 . Siege Activations . | . . . Martial Activations . | . . . Shielding Activations . | . . . Robots Disrupted . | . . . Combat Hostiles . | . . . Robots Corrupted . | . . . Combat Hostiles . | . . . Parts Fried . | . . . Impact Corruptions . | . . . Robots Melted . | . . . Combat Hostiles . | . . . Parts Melted 10 | . 10 . Heat Transferred 2195 | 322 1823 50 Parts Sabotaged . | . . . Parts Stolen . | . . . Parts Stripped . | . . . Power Chain Reactions . | . . . Alert | -11 -10 -10 ------- Run | Yrd Mat Min Maximum Alert Level . | . . . Low Security (%) 100 | 100 100 100 Level 1 . | . . . Level 2 . | . . . Level 3 . | . . . Level 4 . | . . . Level 5 . | . . . High Security . | . . . Max Security . | . . . Peak Influence 155 | 5 155 85 Initial 55 | . . 55 Average 64 | 1 87 46 Influence Increases 537 | 15 431 91 Destroy 0b10 Robot/C 300 | . 280 20 Destroy 0b10 Robot/NC 25 | 15 10 . Destroy Leader 82 | . 72 10 Successful Hack 24 | . 24 . Destroy Structure 1 | . . 1 Lose Combat Pursuer 105 | . 45 60 Influence Decreases 421 | 15 289 117 Entered New Map 87 | . . 87 Time Decay 244 | 15 199 30 Lost Part 90 | . 90 . Squads Dispatched 6 | . 6 . Investigation 3 | . 3 . Extermination . | . . . Reinforcement 3 | . 3 . Assault . | . . . Garrison . | . . . Intercept . | . . . Searches Triggered . | . . . Construction Impeded . | . . . Haulers Reinforced . | . . . Active Scanning Responses . | . . . Cargo Convoy Interrupts . | . . . Stealth | -11 -10 -10 --------- Run | Yrd Mat Min Distress Signals 1 | . 1 . Communications Jammed . | . . . Distress Signals . | . . . Times Spotted 36 | . 29 7 Peak Tracking Total 10 | . 10 5 Tactical Retreats 3 | . 2 1 Traps | -11 -10 -10 ------- Run | Yrd Mat Min Traps Triggered 1 | . 1 . Indirectly . | . . . Trap Hack Attempts . | . . . Triggered . | . . . Disarmed . | . . . Reprogrammed . | . . . Reused . | . . . Traps Extracted . | . . . Installed . | . . . Triggered . | . . . Machines | -11 -10 -10 ---------- Run | Yrd Mat Min Machines Disabled . | . . . Max in Single Turn . | . . . Machines Repaired . | . . . Machines Dismantled . | . . . Machines Sabotaged . | . . . Overloaded Fab Kills . | . . . Hacking | -11 -10 -10 --------- Run | Yrd Mat Min Machines Accessed 4 | . 4 . Terminals 4 | . 4 . Fabricators . | . . . Repair Stations . | . . . Recycling Units . | . . . Scanalyzers . | . . . Garrison Access . | . . . Total Hacks 17 | . 17 . Successful 8 | . 8 . Failed 9 | . 9 . Catastrophic 2 | . 2 . Database Lockouts . | . . . Manual 18 | . 18 . Terminals 17 | . 17 . Fabricators . | . . . Repair Stations . | . . . Recycling Units . | . . . Scanalyzers . | . . . Garrison Access . | . . . Terminal Hacks 4 | . 4 . Part Schematic 1 | . 1 . Prototype ID Bank 1 | . 1 . Terminal Index 1 | . 1 . Fabricator Index 1 | . 1 . Fabricator Hacks . | . . . Repair Station Hacks . | . . . Recycling Unit Hacks . | . . . Scanalyzer . | . . . Garrison Access Hacks . | . . . Unauthorized Hacks 4 | . 4 . Terminals 4 | . 4 . Botnet 4 | . 4 . Fabricators . | . . . Repair Stations . | . . . Recycling Units . | . . . Scanalyzers . | . . . Garrison Access . | . . . Data Cores Recovered . | . . . Used . | . . . Hacking Detections 4 | . 4 . Full Trace Events 3 | . 3 . Feedback Events . | . . . Feedback Blocked . | . . . Robot Schematics Acquired . | . . . Robots Built . | . . . Authchips . | . . . Time . | . . . Total Robot Build Rating . | . . . Part Schematics Acquired 1 | . 1 . Parts Built . | . . . Authchips . | . . . Time . | . . . Total Part Build Rating . | . . . Part Studies Acquired . | . . . Parts Repaired . | . . . Time . | . . . Parts Recycled . | . . . Recycled Matter . | . . . Retrieved Matter . | . . . Retrieved Components . | . . . Parts Scanalyzed . | . . . Part Schematics Acquired . | . . . Parts Damaged . | . . . Bothacking | -11 -10 -10 ------------ Run | Yrd Mat Min Used RIF Installer . | . . . Robots Hacked . | . . . Non-combat . | . . . Combat . | . . . Robot Hacks Applied . | . . . Relay Couplers Released . | . . . Fabnet Peak Effective % . | . . . Robots Rewired . | . . . Allies Hacked . | . . . Hacks Repelled . | . . . Allies | -11 -10 -10 -------- Run | Yrd Mat Min Total Allies . | . . . Largest Group . | . . . Highest-Rated Group . | . . . Highest-Rated Ally . | . . . Total Orders . | . . . Ally Attacks . | . . . Total Damage . | . . . Kills . | . . . Allies Corrupted . | . . . Allies Melted . | . . . Intel | -11 -10 -10 ------- Run | Yrd Mat Min Active Infowar (turns) 529 | 47 413 69 Terrain 387 | 18 369 . Seismic 142 | 29 44 69 Robot Analysis Total . | . . . Derelict Logs Recovered 1 | . . 1 Drone Launches . | . . . Drone Recoveries . | . . . Exploration | -11 -10 -10 ------------- Run | Yrd Mat Min Turns Passed 664 | 149 446 69 Spaces Moved 453 | 100 233 120 Core 23 | 19 4 . Treads . | . . . Legs 227 | 81 146 . Wheels . | . . . Hover . | . . . Flight 203 | . 83 120 Fastest Speed 37 | 50 37 37 Average Speed 80 | 106 90 37 Slowest Speed 150 | 120 150 37 Overloaded Moves . | . . . Propulsion Burnouts . | . . . Robots Hopped 1 | . 1 . Potential Cave-ins . | . . . Cave-ins Triggered . | . . . Exploration Rate (%) 26 | 5 40 34 Regions Visited 2 Branch Regions 1 Pre-discovered Areas . | . . . Known Exits Taken . | . . . Unknown Exits Taken 2 | 1 1 . Scrap Searched . | . . . Spaces Dug . | . . . Terrain Destroyed 1 | . . 1 Melee . | . . . Projectile 1 | . . 1 AOE . | . . . Terrain Rammed . | . . . Walls Destroyed . | . . . Machines Disabled . | . . . Actions | -11 -10 -10 --------- Run | Yrd Mat Min Total 628 | 127 360 141 Wait 48 | 1 28 19 Move 449 | 99 230 120 Hop 1 | . 1 . Pick Up 29 | 11 18 . Fast Attach . | . . . Attach 17 | 7 10 . Detach . | . . . Swap 5 | 2 3 . Drop 9 | . 9 . Fire 62 | 7 53 2 Melee 8 | . 8 . Ram . | . . . Kick . | . . . Crush . | . . . Escape Stasis . | . . . Rewire . | . . . Trap . | . . . Miscellaneous . | . . . Route ------- -11/Scrapyard -10/Materials -10/Mines History --------- Turn | Location | Event 29 | -11/Scrapyard | Discovered new exit (range 12) 150 | -11/Scrapyard | Entered Materials 478 | -10/Materials | Core integrity fell below 50% 517 | -10/Materials | Core integrity fell below 20% 559 | -10/Materials | Lost 7 parts (1p2n1u3w) 564 | -10/Materials | Discovered new exit (range 15) 596 | -10/Materials | Entered Mines 603 | -10/Mines | Received a Rocket Launcher from a helpful Derelict 608 | -10/Mines | Assembled infested the area 613 | -10/Mines | Assisted by a Guerilla fighting off Assembled 653 | -10/Mines | Learned Materials machine intel 665 | -10/Mines | Destroyed by S-10 Pest with Light Assault Rifle Last Messages --------------- that to the mining laser wimps, I say!" EI-2EJ(g): "Would you like a rocket launcher? I know I would if I were you, so I'm going to lend you mine." EI-2EJ(g) slips back into the shadows. ALERT: Infestation in the mines, dispatching Demolisher response squad. A derelict emerges from the shadows: "You need to get out of here! I've been tracking a group of Assembled to figure out where they're coming from, and they're closing on this area, come on!" X4-BRF(h): "I'll hold them off! Go on ahead or try to find another way!" HV Slug penetrates Wall. K-01 Serf collects debris. Acquired derelict log, extracted data. Data stored: Materials machine intel. Destroyed Flight Unit. S-10 Pest destroyed. Map ----- +----------------------------------------------------+ | ?????????????????????????????????????????? | | ?????????????????????????????????????????? | | ?????????????????????????????????????????? | | ?????????????????????????????????????????? | | ?????????????????????????????????????????? | | ?????????????????????????????????????????? | | ?????????????????????????????????????????? | | ?????????????????????????????????????????? | | ?????????????????????????????????????????? | | ?????????????????????????????????????????? | | ?????????????????????????????????????????? | | ?????????????????????????????????????????? | | ?????????????????????????????????????????? | | ?????????????????????????????????????????? | | ?????????????????????????????????????????? | | ?????????????????????????????????????????? | | ?????????????????????????????????????????? | | ?????????????????????????????????????????? | | ?????????????????????????????????????????? | | ??????????????????????##??####??#????????? | | ?????????????????????? ## ## #????????? | | ????????????????###???? ?????????? | | ???????????????? #???? ???????????? | | ????????????????# #????? ????????????? | | ????????????????#s#????? ?????????????? | | ????????????????#@####### #??????????????? | | ????????????????# s #??????????????? | | ????????????????###;##### #####??????????? | | ???????????????????##???# #??????????? | | ????????????????????????##### #??????????? | | ????????????????????????????# #??#???????? | | ????????????????????????????# #? #???????? | | ?????????????????????######## ## #### """? | | ?????????????? """? | | ????????????????????# ######## ###### | | ?????????????????????????????# #?????????? | | ?????????????????????????????# #?????????? | | ?????????????????????????????# #????????## | | ?????????????????????????????# ########## | | ?????????????????????????????# | | ?????????????????????? ????########### | | ?????????????????????? ?????????????## | | ????????????????????? ??????????????## | | ????????????????????? ??????????????? | | ????????????????????? ?????????????? | | ????????????????????## ???????????? | | ????????????????????# # ####????? | | ???????????????????## ##??? | | ???????????????????# " #### | | ???????????????????# # # | +----------------------------------------------------+ Best States ------------- Heat Dissipation 25 Energy Generation 10 Energy Capacity 250 Matter Stores 300 Matter Capacity 300 Sight Range 16 Terrain Scan Range 16 Terrain Scan Density 10 Evasion (%) 62 Item Schematics ----------------- Flight Unit | -10/Materials | Hacked Robot Schematics ------------------ None Fabricated ------------ Nothing Repaired ---------- Nothing Studied --------- None Alien Tech Used ----------------- None Achievements -------------- None Challenges ------------ None Game ------ Seed ModifiedChromionConstruct Manual? 0 Play Time 00:13:24 Cumulative 44.0 hours Start 2026.08.12 @ 20:41:17 End 2026.08.12 @ 20:52:59 Sessions 1 Manual Loads 0 Difficulty Rogue Special Mode None Game No. 65 Rogue 65 Adventurer 0 Explorer 0 Win Type - Total 0 Types 0/0/0/0/0/0/0/0/0/0 Lore% 15 Gallery% 32 Achievement% 21 Wizard Run 0 Options --------- Layout 1 ASCII 0 Keyboard 0 Movement Mouse Keybinds 0 Fullscreen 1 Font 32/SmallcapsGlow Map View 50x35 Zoom Use 0% Tactical HUD 0 Map Filters NONE Filters NONE Steam 1 RUN: c5ea0593-3252-4ae8-a385-0ad1ed74d285